fUST/lending_fUST_20240123
["ID","MTS","AMOUNT","RATE_DAILY","PERIOD"]
[312540134,1705951838604,-644.40876473,7.303e-05,2]
[312540136,1705951838614,-36965.59360405,7.304e-05,2]
[312540138,1705951838624,-18904.87156494,7.304e-05,2]
[312540139,1705951838633,-1603.2097273,7.305e-05,2]
[312540141,1705951838642,-2039.05381066,7.305e-05,2]
[312540143,1705951838652,-2034.57165769,7.305e-05,2]
[312540144,1705951838661,-1242.55121556,7.306e-05,2]
[312540146,1705951838670,-561.64006482,7.306e-05,2]
[312540148,1705951838679,-522.11697668,7.306e-05,2]
[312540150,1705951838689,-294.88989743,7.306e-05,2]
[312540152,1705951838699,-19701.14547142,7.306e-05,2]
[312540153,1705951838708,-199.25222227,7.307e-05,2]
[312540155,1705951838718,-452.74208012,7.307e-05,2]
[312540157,1705951838729,-161.02224773,7.307e-05,2]
[312540159,1705951838739,-1993.49479484,7.307e-05,2]
[312540161,1705951838749,-3130.04768523,7.307e-05,2]
[312540163,1705951838759,-301.93072688,7.308e-05,2]
[312540165,1705951838769,-261.13863683,7.308e-05,2]
[312540166,1705951838779,-20874.58230083,7.308e-05,2]
[312540168,1705951838789,-15915.17297811,7.308e-05,2]
[312540170,1705951838799,-20902.38645894,7.308e-05,2]
[312540172,1705951838809,-21686.1459775,7.309e-05,2]
[312540174,1705951838818,-3746.05559912,7.309e-05,2]
[312540176,1705951838836,-3973.85906822,7.309e-05,2]
[312540178,1705951838846,-470.67463112,7.31e-05,2]
[312540180,1705951838856,-2073.9279871,7.31e-05,2]
[312540182,1705951838866,-2103.40493137,7.311e-05,2]
[312540183,1705951838876,-241.3246353,7.335e-05,2]
[312540185,1705951838886,-157.63852839,7.345e-05,2]
[312540187,1705951838896,-24900.0,7.397e-05,2]
[312540189,1705951838906,-156.02710907,7.534e-05,2]
[312540191,1705951838916,-375.44011543,7.539e-05,2]
[312540193,1705951838927,-26090.96595348,7.634e-05,2]
[312540195,1705951838937,-243.58921354,7.796e-05,2]
[312540197,1705951838947,-8761.98403332,7.796e-05,2]
[312540198,1705951838957,-309.69031278,7.796e-05,2]
[312540200,1705951838966,-423.74941788,7.8e-05,2]
[312540202,1705951838976,-155.14299138,7.8e-05,2]
[312540204,1705951838986,-263.91122635,7.8e-05,2]
[312540206,1705951838995,-267.98689299,7.802e-05,2]
[312540208,1705951839004,-309.87605268,7.802e-05,2]
[312540210,1705951839013,-2836.67729407,7.802e-05,2]
[312540211,1705951839022,-246.21885002,7.802e-05,2]
[312540213,1705951839034,-309.81413939,7.802e-05,2]
[312540215,1705951839047,-423.75661732,7.802e-05,2]
[312540217,1705951839056,-433.36535978,7.803e-05,2]
[312540219,1705951839065,-309.73681733,7.803e-05,2]
[312540221,1705951839080,-154.9690062,7.81e-05,2]
[312540222,1705951839089,-185.41016331,7.815e-05,2]
[312540224,1705951839098,-243.13309117,7.824e-05,2]
[312540226,1705951839108,-315.49678543,7.828e-05,2]
[312540228,1705951839117,-1741.02914519,8e-05,2]
[312540229,1705951839126,-155.22207057,0.0001,2]
[312540231,1705951839135,-7960.18375069,0.0001,2]
[312540233,1705951839145,-213.43652609,0.0001,2]
[312540235,1705951839154,-155.0,0.0001,2]
[312540236,1705951839163,-834.40610543,0.0001,2]
[312540238,1705951839172,-1468.66343637,0.0001,2]
[312540240,1705951839182,-5000.0,0.0001,2]
[312540242,1705951839191,-157.63852837,0.00011211,2]
[312540244,1705951839200,-215.4834977,0.00011222,2]
[312540246,1705951839208,-190.58739142,0.000129,2]
[312540247,1705951839217,-190.58739141,0.000129,2]
[312540249,1705951839227,-286.67398334,0.0001369,2]
[312540251,1705951839236,-208.611055,0.00013699,2]
[312540253,1705951839246,-2047.5072293,0.00013699,2]
[312540255,1705951839255,-13222.2295784,0.00013699,2]
[312540267,1705951839384,-687.96014716,0.00015,2]
[312540269,1705951839397,-1266.7890629,0.00015,2]
[312540270,1705951839406,-155.0,0.00015,2]
[312540272,1705951839415,-193.33123141,0.00015,2]
[312540274,1705951839425,-547.94303379,0.00015,2]
[312540276,1705951839434,-154.9690062,0.00015,2]
[312540278,1705951839446,-157.63852837,0.00015178,2]
[312540280,1705951839455,-272.55691777,0.000165,2]
[312540282,1705951839464,-874.37604694,0.00017235,2]
[312540284,1705951839474,-190.58739141,0.00017656,2]
[312540285,1705951839484,-10537.96841435,0.00017898,2]
[312540287,1705951839493,-1582.38308236,0.00019,2]
[312540289,1705951839502,-157.63852837,0.00019144,2]
[312540291,1705951839511,-165.571319,0.00019178,2]
[312540293,1705951839521,-163.285636,0.00019178,2]
[312540295,1705951839530,-271.20131475,0.0002,2]
[312540297,1705951839539,-155.0,0.0002,2]
[312540299,1705951839548,-155.0,0.0002,2]
[312540300,1705951839559,-323.13003236,0.0002,2]
[312540302,1705951839568,-1197.97622761,0.0002,2]
[312540304,1705951839582,-678.6288756,0.0002,2]
[312540306,1705951839591,-850.30063575,0.0002,2]
[312540308,1705951839600,-155.0,0.0002,2]
[312540310,1705951839610,-200.0,0.0002,2]
[312540312,1705951839620,-667.24083957,0.0002,2]
[312540314,1705951839629,-154.9690062,0.0002,2]
[312540316,1705951839640,-208.611055,0.00020548,2]
[312540318,1705951839650,-166.666666,0.00021918,2]
[312540319,1705951839661,-293.4468762,0.00022,4]
[312540321,1705951839670,-425.98515357,0.00022,2]
[312540323,1705951839680,-7616.88966956,0.00022,2]
[312540325,1705951839689,-166.666666,0.00022431,2]
[312540327,1705951839698,-9807.92282386,0.00022678,2]
[312540329,1705951839707,-190.58739141,0.00022872,2]
[312540331,1705951839716,-166.666666,0.00022944,2]
[312540332,1705951839726,-1571.50470749,0.00023,2]
[312540334,1705951839735,-16434.44305414,0.00023099,2]
[312540336,1705951839745,-6766.03806076,0.00023108,2]
[312540338,1705951839754,-157.63852837,0.0002311,2]
[312540340,1705951839764,-42590.43120762,0.0002311,2]
[312540342,1705951839773,-201.18552161,0.00023192,2]
[312540344,1705951839782,-588.23188464,0.00023193,2]
[312540346,1705951839791,-1575.86104001,0.00023193,2]
[312540347,1705951839800,-711.64153599,0.00023194,2]
[312540349,1705951839810,-297.60261637,0.00023194,2]
[312540351,1705951839819,-654.91148852,0.00023195,2]
[312540353,1705951839834,-542.3971227,0.0002321,2]
[312540355,1705951839844,-3504.81302219,0.0002321,2]
[312540357,1705951839853,-155.0,0.0002321,2]
[312540359,1705951839862,-4000.55725773,0.0002321,2]
[312540360,1705951839872,-284227.95491571,0.0002321,2]
[312540362,1705951839881,-343.09681091,0.0002321,2]
[312540365,1705951839890,-300.0,0.0002321,2]
[312540367,1705951839899,-166.666666,0.00023456,2]
[312540369,1705951839908,-151.0,0.00023926,2]
[312540371,1705951839917,-166.666666,0.00023969,2]
[312540373,1705951839927,-7704.47868303,0.00024,2]
[312540374,1705951839937,-166.666666,0.00024482,2]
[312540375,1705951839947,-151.0,0.00024643,2]
[312540376,1705951839956,-193.129942,0.00024658,2]
[312540377,1705951839965,-247.962562,0.00024658,2]
[312540378,1705951839974,-380.0,0.00024658,2]
[312540379,1705951839984,-1582.21305813,0.000247,2]
[312540380,1705951840001,-258.2754109,0.00025,2]
[312540381,1705951840014,-679.71377977,0.00025,2]
[312540382,1705951840028,-4723.24260277,0.00025,2]
[312540383,1705951840037,-7381.29040931,0.00025,2]
[312540384,1705951840047,-155.0,0.00025,2]
[312540385,1705951840057,-154.98450155,0.00025,2]
[312540386,1705951840066,-151.0,0.0002536,2]
[312540387,1705951840080,-193.129942,0.0002544,2]
[312540388,1705951840089,-247.962562,0.0002544,2]
[312540389,1705951840098,-200.0,0.00025479,2]
[312540390,1705951840107,-151.48485454,0.00025945,2]
[312540391,1705951840116,-178.69540057,0.00025995,2]
[312540392,1705951840124,-876.39189184,0.00025996,2]
[312540393,1705951840133,-166.67526662,0.00025996,2]
[312540394,1705951840142,-289.72366648,0.00025999,2]
[312540395,1705951840151,-129086.88673472,0.00026,2]
[312540396,1705951840164,-10202.84952288,0.00026,2]
[312540397,1705951840177,-9322.61378654,0.00026,2]
[312540398,1705951840187,-241.24702868,0.00026,2]
[312540399,1705951840198,-151.0,0.00026,2]
[312540400,1705951840207,-83.44283454,0.00026,2]
[312540401,1705951840219,-239.41739646,0.00026,2]
[312540402,1705951840229,-322.860231,0.00026,2]
[312540403,1705951840238,-151.0,0.00026,2]
[312540404,1705951840248,-151.0,0.00026,2]
[312540405,1705951840257,-1016.715516,0.00026,2]
[312540406,1705951840266,-1016.715516,0.00026,2]
[312540407,1705951840275,-10000.0,0.00026,2]
[312540408,1705951840285,-1102.29134054,0.00026,2]
[312540409,1705951840297,-2076.24576642,0.00026,2]
[312540410,1705951840308,-2195.30398238,0.00026,2]
[312540411,1705951840319,-4626.15891066,0.00026,2]
[312540412,1705951840336,-10000.0,0.00026,2]
[312540413,1705951840346,-10000.0,0.00026,2]
[312540414,1705951840355,-10000.0,0.00026,2]
[312540415,1705951840365,-151.0,0.00026077,2]
[312540416,1705951840374,-193.129942,0.00026223,2]
[312540417,1705951840383,-247.962562,0.00026223,2]
[312540418,1705951840393,-648.03043698,0.000264,2]
[312540419,1705951840409,-151.0,0.00026793,2]
[312540420,1705951840419,-290.32272867,0.00027,2]
[312540421,1705951840428,-193.129942,0.00027006,2]
[312540422,1705951840438,-247.962562,0.00027006,2]
[312540423,1705951840448,-500.0,0.00027395,2]
[312540424,1705951840457,-500.0,0.00027395,2]
[312540425,1705951840466,-500.0,0.00027395,2]
[312540426,1705951840476,-500.0,0.00027395,2]
[312540428,1705951840485,-500.0,0.00027395,2]
[312540431,1705951840495,-418.22761255,0.00027395,2]
[312540432,1705951840504,-221.07530314,0.00027395,2]
[312540560,1705951843398,-899.85815083,7.3e-05,2]
[312540580,1705951843552,-1000.0114866,7.3e-05,2]
[312540586,1705951843610,-1221.85536383,7.3e-05,2]
[312540600,1705951843704,-1692.22892082,7.3e-05,2]
[312540603,1705951843713,-977.99536434,7.301e-05,2]
[312540605,1705951843723,-228.89798719,0.00027395,2]
[312540862,1705951847266,-50.02670967,0.00027395,2]
[312540863,1705951847276,-500.0,0.00027395,2]
[312540864,1705951847286,-154.42334911,0.00027395,2]
[312540866,1705951847295,-500.0,0.00027395,2]
[312540867,1705951847304,-500.0,0.00027395,2]
[312540868,1705951847314,-236.60366764,0.00027395,2]
[312540869,1705951847323,-500.0,0.00027395,2]
[312540870,1705951847339,-500.0,0.00027395,2]
[312540871,1705951847351,-500.0,0.00027395,2]
[312540872,1705951847360,-500.0,0.00027395,2]
[312540873,1705951847370,-500.0,0.00027395,2]
[312540874,1705951847380,-500.0,0.00027395,2]
[312540875,1705951847391,-500.0,0.00027395,2]
[312540876,1705951847405,-269.88476454,0.00027395,2]
[312540877,1705951847415,-500.0,0.00027395,2]
[312540878,1705951847426,-446.30914874,0.00027395,2]
[312540879,1705951847435,-500.0,0.00027395,2]
[312540880,1705951847445,-500.0,0.00027395,2]
[312540881,1705951847455,-500.0,0.00027395,2]
[312540882,1705951847465,-500.0,0.00027395,2]
[312540883,1705951847475,-500.0,0.00027395,2]
[312540884,1705951847485,-500.0,0.00027395,2]
[312540885,1705951847495,-500.0,0.00027395,2]
[312540886,1705951847505,-500.0,0.00027395,2]
[312540887,1705951847514,-500.0,0.00027395,2]
[312540888,1705951847523,-500.0,0.00027395,2]
[312540889,1705951847532,-500.0,0.00027395,2]
[312540890,1705951847541,-500.0,0.00027395,2]
[312540891,1705951847551,-500.0,0.00027395,2]
[312540892,1705951847561,-500.0,0.00027395,2]
[312540893,1705951847571,-500.0,0.00027395,2]
[312540894,1705951847584,-500.0,0.00027395,2]
[312540895,1705951847593,-500.0,0.00027395,2]
[312540896,1705951847602,-500.0,0.00027395,2]
[312540897,1705951847611,-622.28798447,0.00027395,2]
[312540898,1705951847620,-500.0,0.00027395,2]
[312540899,1705951847630,-500.0,0.00027395,2]
[312540900,1705951847640,-500.0,0.00027395,2]
[312540902,1705951847649,-434.69723888,0.00027395,2]
[312540904,1705951847658,-500.0,0.00027395,2]
[312540905,1705951847667,-500.0,0.00027395,2]
[312540907,1705951847676,-500.0,0.00027395,2]
[312540909,1705951847685,-500.0,0.00027395,2]
[312540911,1705951847694,-500.0,0.00027395,2]
[312540913,1705951847703,-500.0,0.00027395,2]
[312540915,1705951847712,-500.0,0.00027395,2]
[312540917,1705951847721,-500.0,0.00027395,2]
[312540919,1705951847730,-500.0,0.00027395,2]
[312540921,1705951847739,-500.0,0.00027395,2]
[312540923,1705951847748,-431.40656757,0.00027395,2]
[312540925,1705951847758,-500.0,0.00027395,2]
[312540933,1705951847862,-500.0,0.00027395,2]
[312540934,1705951847874,-500.0,0.00027395,2]
[312540936,1705951847884,-500.0,0.00027395,2]
[312540937,1705951847894,-500.0,0.00027395,2]
[312540939,1705951847904,-500.0,0.00027395,2]
[312540941,1705951847913,-500.0,0.00027395,2]
[312540943,1705951847922,-500.0,0.00027395,2]
[312540944,1705951847931,-500.0,0.00027397,2]
[312540945,1705951847940,-11854.36056938,0.00027397,3]
[312540950,1705951848049,-5984.99999998,0.00027397,3]
[312540952,1705951848061,-3216.39580254,0.00027397,3]
[312540953,1705951848073,-2507.95351395,0.00027397,3]
[312540966,1705952716252,266.3742192,5.996e-05,2]
[312540968,1705952773688,154.9690062,5.996e-05,2]
[312540969,1705952827023,1000.0,0.00027,27]
[312541107,1705953035241,-977.99536434,6.853e-05,2]
[312541108,1705953035251,-616.7500659,6.853e-05,2]
[312541109,1705953035262,-522.11697668,6.853e-05,2]
[312541110,1705953035273,-1242.55121556,6.853e-05,2]
[312541112,1705953035283,-3746.05559912,6.853e-05,2]
[312541113,1705953035293,-161.02224773,6.853e-05,2]
[312541115,1705953035303,-294.88989743,6.853e-05,2]
[312541117,1705953035312,-156.02710907,6.853e-05,2]
[312541118,1705953035321,-2034.57165769,6.853e-05,2]
[312541120,1705953035331,-154.93802479,6.854e-05,2]
[312541121,1705953035341,-561.64006482,6.854e-05,2]
[312541123,1705953035351,-154.93802479,6.854e-05,2]
[312541125,1705953035361,-644.40876473,6.854e-05,2]
[312541127,1705953035370,-3485.76836938,6.854e-05,2]
[312541129,1705953035380,-2039.05381066,6.854e-05,2]
[312541130,1705953035389,-178.91876323,6.855e-05,2]
[312541132,1705953035398,-211.53795191,6.855e-05,2]
[312541133,1705953035408,-1603.2097273,6.855e-05,2]
[312541134,1705953035416,-4813.95392208,6.855e-05,2]
[312541136,1705953035425,-3130.04768523,6.855e-05,2]
[312541138,1705953035434,-33851.63419473,6.855e-05,2]
[312541140,1705953035452,-1926.98718196,6.855e-05,2]
[312541250,1705953038836,-154.93802479,6.852e-05,2]
[312541252,1705953038846,-13719.8221343,6.852e-05,2]
[312541254,1705953038857,-45428.76327579,6.855e-05,2]
[312541257,1705953038867,-876.39189184,6.856e-05,2]
[312541260,1705953038876,-154.93802479,6.856e-05,2]
[312541263,1705953038886,-588.35431441,6.856e-05,2]
[312541266,1705953038896,-20874.58230083,6.856e-05,2]
[312541269,1705953038905,-21686.1459775,6.856e-05,2]
[312541272,1705953038915,-1579.39395429,6.857e-05,2]
[312541276,1705953038925,-301.93072688,6.857e-05,2]
[312541279,1705953038934,-18904.87156494,6.857e-05,2]
[312541281,1705953038943,-36965.59360405,6.858e-05,2]
[312541284,1705953038955,-262.3367316,6.858e-05,2]
[312541288,1705953038965,-329.53567279,6.858e-05,2]
[312541290,1705953038974,-3973.85906822,6.859e-05,2]
[312541292,1705953038984,-1696.62198985,6.859e-05,2]
[312541295,1705953038995,-8761.98403332,6.859e-05,2]
[312541298,1705953039005,-1993.49479484,6.859e-05,2]
[312541301,1705953039016,-1253.41868812,6.859e-05,2]
[312541304,1705953039025,-452.74208012,6.86e-05,2]
[312541308,1705953039036,-199.25222227,6.86e-05,2]
[312541311,1705953039046,-154.93802479,6.86e-05,2]
[312541314,1705953039055,-19701.14547142,6.86e-05,2]
[312541317,1705953039065,-19867.27856324,6.861e-05,2]
[312541319,1705953039075,-196.62128993,6.982e-05,2]
[312541322,1705953039086,-198.35421752,6.989e-05,2]
[312541326,1705953039097,-631.79888623,6.989e-05,2]
[312541329,1705953039108,-284.85781043,6.989e-05,2]
[312541331,1705953039118,-161.58015572,6.989e-05,2]
[312541334,1705953039128,-1640.08201467,6.99e-05,2]
[312541337,1705953039138,-277.28029125,6.99e-05,2]
[312541342,1705953039147,-15915.17297811,7e-05,2]
[312541344,1705953039157,-470.67463112,7.004e-05,2]
[312541347,1705953039167,-2073.9279871,7.004e-05,2]
[312541350,1705953039176,-2103.40493137,7.004e-05,2]
[312541352,1705953039185,-375.44011543,7.008e-05,2]
[312541355,1705953039194,-241.3246353,7.096e-05,2]
[312541358,1705953039206,-309.69031278,7.102e-05,2]
[312541360,1705953039215,-315.49678543,7.103e-05,2]
[312541362,1705953039224,-309.73681733,7.103e-05,2]
[312541364,1705953039233,-309.87605268,7.103e-05,2]
[312541366,1705953039243,-267.98689299,7.103e-05,2]
[312541368,1705953039252,-243.13309117,7.103e-05,2]
[312541371,1705953039263,-423.74941788,7.103e-05,2]
[312541373,1705953039273,-246.21885002,7.103e-05,2]
[312541375,1705953039283,-2836.67729407,7.103e-05,2]
[312541377,1705953039294,-309.81413939,7.103e-05,2]
[312541379,1705953039303,-185.41016331,7.208e-05,2]
[312541381,1705953039313,-1293.3633064,7.302e-05,2]
[312541382,1705953039323,-24900.0,7.397e-05,2]
[312541384,1705953039334,-1741.02914519,8e-05,2]
[312541386,1705953039343,-155.0418613,0.0001,2]
[312541389,1705953039354,-213.43652609,0.0001,2]
[312541391,1705953039363,-834.40610543,0.0001,2]
[312541392,1705953039372,-7960.18375069,0.0001,2]
[312541394,1705953039382,-1468.66343637,0.0001,2]
[312541396,1705953039391,-155.04341216,0.0001,2]
[312541398,1705953039400,-5000.0,0.0001,2]
[312541400,1705953039409,-215.4834977,0.00011222,2]
[312541402,1705953039418,-196.62128989,0.00011986,2]
[312541404,1705953039427,-286.67398334,0.0001369,2]
[312541406,1705953039437,-2047.5072293,0.00013699,2]
[312541408,1705953039445,-13222.2295784,0.00013699,2]
[312541410,1705953039457,-208.611055,0.00013699,2]
[312541412,1705953039465,-154.95351395,0.00014514,2]
[312541414,1705953039474,-154.95351395,0.00014514,2]
[312541416,1705953039483,-154.95380821,0.00014514,2]
[312541418,1705953039493,-1266.7890629,0.00015,2]
[312541419,1705953039502,-687.96014716,0.00015,2]
[312541421,1705953039511,-154.95351395,0.00015,2]
[312541423,1705953039520,-193.33123141,0.00015,2]
[312541425,1705953039528,-201.18552161,0.00015995,2]
[312541427,1705953039538,-289.72366648,0.00015998,2]
[312541429,1705953039547,-178.69540057,0.00015998,2]
[312541431,1705953039556,-166.67526662,0.00015998,2]
[312541433,1705953039565,-272.55691777,0.000165,2]
[312541435,1705953039574,-196.62128989,0.00017089,2]
[312541437,1705953039584,-874.37604694,0.00017235,2]
[312541439,1705953039594,-10537.96841435,0.00017898,2]
[312541441,1705953039603,-1582.38308236,0.00019,2]
[312541443,1705953039613,-164.428477,0.00019178,2]
[312541445,1705953039622,-165.610127,0.00019178,2]
[312541447,1705953039631,-711.64153599,0.00019997,2]
[312541449,1705953039641,-154.9690062,0.0002,2]
[312541451,1705953039650,-154.9690062,0.0002,2]
[312541453,1705953039659,-678.6288756,0.0002,2]
[312541455,1705953039669,-1197.97622761,0.0002,2]
[312541457,1705953039678,-154.9690062,0.0002,2]
[312541459,1705953039687,-323.13003236,0.0002,2]
[312541461,1705953039696,-850.30063575,0.0002,2]
[312541462,1705953039709,-154.95351395,0.0002,2]
[312541464,1705953039720,-154.95351395,0.0002,2]
[312541466,1705953039729,-667.24083957,0.0002,2]
[312541469,1705953039739,-200.0,0.0002,2]
[312541470,1705953039749,-208.611055,0.00020548,2]
[312541472,1705953039760,-166.666666,0.00021918,2]
[312541474,1705953039770,-425.98515357,0.00022,2]
[312541476,1705953039780,-293.4468762,0.00022,4]
[312541478,1705953039790,-7616.88966956,0.00022,2]
[312541480,1705953039801,-196.62128989,0.00022193,2]
[312541482,1705953039812,-166.666666,0.00022431,2]
[312541484,1705953039822,-166.666666,0.00022944,2]
[312541486,1705953039833,-1571.50470749,0.00023,2]
[312541488,1705953039842,-166.666666,0.00023456,2]
[312541490,1705953039851,-9807.92282386,0.000239,2]
[312541492,1705953039861,-166.666666,0.00023969,2]
[312541494,1705953039870,-4014.03339386,0.00024,2]
[312541495,1705953039879,-166.666666,0.00024482,2]
[312541497,1705953039888,-210.986219,0.00024658,2]
[312541499,1705953039897,-380.0,0.00024658,2]
[312541500,1705953039906,-181.839212,0.00024658,2]
[312541502,1705953039915,-50000.0,0.0002468,2]
[312541504,1705953039924,-50000.0,0.00024685,2]
[312541506,1705953039934,-1582.21305813,0.000247,2]
[312541508,1705953039943,-154.9690062,0.00025,2]
[312541509,1705953039955,-154.9690062,0.00025,2]
[312541511,1705953039965,-679.71377977,0.00025,2]
[312541512,1705953039974,-7381.29040931,0.00025,2]
[312541514,1705953039983,-4723.24260277,0.00025,2]
[312541515,1705953039993,-154.98450155,0.00025,2]
[312541516,1705953040002,-210.986219,0.0002544,2]
[312541517,1705953040011,-181.839212,0.0002544,2]
[312541518,1705953040021,-16434.44305414,0.00025997,2]
[312541519,1705953040030,-297.60261637,0.00025998,2]
[312541520,1705953040040,-148612.35004414,0.00026,2]
[312541521,1705953040049,-210.986219,0.00026223,2]
[312541522,1705953040058,-181.839212,0.00026223,2]
[312541523,1705953040067,-621.40152185,0.00026334,2]
[312541524,1705953040077,-165.847951,0.0002642,2]
[312541525,1705953040086,-151.48485454,0.00026946,2]
[312541527,1705953040095,-290.32272867,0.00027,2]
[312541529,1705953040105,-763.99864371,0.00027,2]
[312541531,1705953040114,-208.00661068,0.00027,2]
[312541532,1705953040124,-230518.28581333,0.00027,7]
[312541533,1705953040136,-10202.84952288,0.00027,7]
[312541534,1705953040148,-1950.50619207,0.00027,7]
[312541535,1705953040162,-41556.31338743,0.00027,7]
[312541536,1705953040171,-300.0,0.00027,2]
[312541537,1705953040181,-4205.77562663,0.00027,2]
[312541538,1705953040190,-343.09681091,0.00027,2]
[312541539,1705953040200,-4000.55725773,0.00027,2]
[312541540,1705953040210,-151.0,0.00027,2]
[312541541,1705953040219,-210.986219,0.00027006,2]
[312541542,1705953040229,-181.839212,0.00027006,2]
[312541543,1705953040238,-208.4755949,0.0002726,2]
[312541544,1705953040247,-42590.43120762,0.00027295,2]
[312541545,1705953040256,-196.62128989,0.00027296,2]
[312541546,1705953040265,-374.0473831,0.00027393,2]
[312541547,1705953040274,-309.67482053,0.00027394,2]
[312541548,1705953040284,-500.0,0.00027395,2]
[312541549,1705953040294,-418.22761255,0.00027395,2]
[312541550,1705953040302,-500.0,0.00027395,2]
[312541551,1705953040312,-500.0,0.00027395,2]
[312541552,1705953040322,-535.90565221,0.00027395,2]
[312541553,1705953040331,-500.0,0.00027395,2]
[312541554,1705953040340,-633.73777285,0.00027395,2]
[312541555,1705953040349,-500.0,0.00027395,2]
[312541556,1705953040358,-500.0,0.00027395,2]
[312541557,1705953040367,-500.0,0.00027395,2]
[312541558,1705953040377,-500.0,0.00027395,2]
[312541559,1705953040385,-500.0,0.00027395,2]
[312541560,1705953040395,-453.53063644,0.00027395,2]
[312541561,1705953040404,-625.69424248,0.00027395,2]
[312541562,1705953040414,-500.0,0.00027395,2]
[312541563,1705953040424,-500.0,0.00027395,2]
[312541564,1705953040433,-500.0,0.00027395,2]
[312541565,1705953040554,-500.0,0.00027395,2]
[312541566,1705953040564,-500.0,0.00027395,2]
[312541567,1705953040573,-500.0,0.00027395,2]
[312541568,1705953040582,-500.0,0.00027395,2]
[312541569,1705953040592,-500.0,0.00027395,2]
[312541570,1705953040601,-500.0,0.00027395,2]
[312541571,1705953040610,-500.0,0.00027395,2]
[312541572,1705953040620,-500.0,0.00027395,2]
[312541573,1705953040629,-500.0,0.00027395,2]
[312541574,1705953040638,-500.0,0.00027395,2]
[312541575,1705953040648,-500.0,0.00027395,2]
[312541576,1705953040657,-411.61415263,0.00027395,2]
[312541577,1705953040666,-568.69562339,0.00027395,2]
[312541578,1705953040675,-500.0,0.00027395,2]
[312541580,1705953040684,-500.0,0.00027395,2]
[312541581,1705953040694,-500.0,0.00027395,2]
[312541583,1705953040706,-500.0,0.00027395,2]
[312541585,1705953040717,-500.0,0.00027395,2]
[312541586,1705953040727,-500.0,0.00027395,2]
[312541587,1705953040736,-500.0,0.00027395,2]
[312541588,1705953040747,-500.0,0.00027395,2]
[312541590,1705953040760,-500.0,0.00027395,2]
[312541592,1705953040771,-500.0,0.00027395,2]
[312541595,1705953040781,-500.0,0.00027395,2]
[312541598,1705953040791,-500.0,0.00027395,2]
[312541599,1705953040802,-500.0,0.00027395,2]
[312541601,1705953040813,-542.3971227,0.00027397,2]
[312541602,1705953040823,-154.95351395,0.00027397,7]
[312541603,1705953040833,-547.94303379,0.00027397,2]
[312541604,1705953040844,-155.0,0.00027397,2]
[312541605,1705953040853,-155.0,0.00027397,2]
[312541606,1705953040863,-500.0,0.00027397,2]
[312541607,1705953040873,-151.0,0.00027397,2]
[312541608,1705953040882,-151.0,0.00027397,2]
[312541609,1705953040891,-151.0,0.00027397,2]
[312541610,1705953040901,-14401.9881173,0.00027397,3]
[312541612,1705953040913,-6348.03542228,0.00027397,3]
[312541613,1705953040924,-5858.64646042,0.00027397,3]
[312541614,1705953040934,-150.89807138,0.00027509,2]
[312541615,1705953040943,-500.0,0.00027534,2]
[312541617,1705953040957,-151.0,0.00027625,2]
[312541618,1705953040967,-620.07007609,0.00027651,2]
[312541620,1705953040977,-500.0,0.00027671,2]
[312541621,1705953040986,-153.0,0.00027671,2]
[312541623,1705953040996,-199.1966855,0.00027671,2]
[312541624,1705953041005,-199.1966855,0.00027671,2]
[312541626,1705953041014,-153.0,0.00027671,2]
[312541628,1705953041024,-153.0,0.00027671,2]
[312541629,1705953041033,-199.1966855,0.00027671,2]
[312541630,1705953041043,-153.0,0.00027671,2]
[312541631,1705953041052,-198.8061655,0.00027671,2]
[312541633,1705953041062,-210.986219,0.00027789,2]
[312541635,1705953041071,-181.839212,0.00027789,2]
[312541636,1705953041080,-26896.11614464,0.000278,2]
[312541638,1705953041104,-2333.1,6.852e-05,2]
[312541808,1705953046631,-903.63325516,6.851e-05,2]
[312541810,1705953046641,-3473.36674486,6.852e-05,2]
[312541818,1705953046887,-435.34359155,6.852e-05,2]
[312541819,1705953046899,-9875.00000001,6.852e-05,2]
[312541820,1705953046910,-1103.10189622,6.852e-05,2]